fUSD/lending_fUSD_20251210
["ID","MTS","AMOUNT","RATE_DAILY","PERIOD"]
[398084769,1765362652649,-500.0,0.00013972,2]
[398084770,1765362652661,-500.0,0.00013972,2]
[398084771,1765362652670,-500.0,0.00013972,2]
[398084772,1765362652679,-500.0,0.00013972,2]
[398084773,1765362652689,-500.0,0.00013972,2]
[398084774,1765362652700,-500.0,0.00013972,2]
[398084775,1765362652710,-500.0,0.00013972,2]
[398084776,1765362652719,-510.54298209,0.00013972,2]
[398084777,1765362652729,-500.0,0.00013972,2]
[398084778,1765362652738,-500.0,0.00013972,2]
[398084779,1765362652748,-562.62,0.00013972,2]
[398084780,1765362652757,-545.38,0.00013972,2]
[398084781,1765362652767,-500.0,0.00013972,2]
[398084782,1765362652777,-521.4510053,0.00013972,2]
[398084783,1765362652785,-534.26335954,0.00013972,2]
[398084784,1765362652795,-500.0,0.00013972,2]
[398084785,1765362652804,-500.0,0.00013972,2]
[398084786,1765362652813,-509.26935862,0.00013972,2]
[398084787,1765362652823,-500.0,0.00013972,2]
[398084788,1765362652833,-505.52,0.00013972,2]
[398084789,1765362652841,-500.0,0.00013972,2]
[398084790,1765362652851,-500.0,0.00013972,2]
[398084791,1765362652860,-778.96,0.00013972,2]
[398084792,1765362652869,-500.0,0.00013972,2]
[398084793,1765362652879,-559.4,0.00013972,2]
[398084794,1765362652888,-500.0,0.00013972,2]
[398084795,1765362652897,-500.0,0.00013972,2]
[398084796,1765362652907,-1090.31,0.00013972,2]
[398084797,1765362652917,-500.0,0.00013972,2]
[398084798,1765362652927,-500.0,0.00013972,2]
[398084799,1765362652936,-500.0,0.00013972,2]
[398084800,1765362652945,-500.0,0.00013972,2]
[398084801,1765362652956,-500.0,0.00013972,2]
[398084802,1765362652966,-500.0,0.00013972,2]
[398084803,1765362652975,-572.48986217,0.00013972,2]
[398084804,1765362652983,-500.0,0.00013972,2]
[398084805,1765362652992,-524.47,0.00013972,2]
[398084806,1765362653002,-500.0,0.00013972,2]
[398084807,1765362653011,-569.71,0.00013972,2]
[398084808,1765362653020,-500.0,0.00013972,2]
[398084809,1765362653030,-500.0,0.00013972,2]
[398084810,1765362653039,-564.89,0.00013972,2]
[398084811,1765362653048,-500.0,0.00013972,2]
[398084812,1765362653057,-500.0,0.00013972,2]
[398084813,1765362653067,-500.0,0.00013972,2]
[398084814,1765362653077,-648.28,0.00013972,2]
[398084815,1765362653087,-500.0,0.00013972,2]
[398084816,1765362653097,-623.5,0.00013972,2]
[398084817,1765362653106,-500.0,0.00013972,2]
[398084818,1765362653116,-500.0,0.00013972,2]
[398084819,1765362653125,-500.0,0.00013972,2]
[398084820,1765362653135,-406.65591747,0.00013972,2]
[398084821,1765362653145,-500.0,0.00013972,2]
[398084822,1765362653155,-500.0,0.00013972,2]
[398084823,1765362653165,-749.67,0.00013972,2]
[398084824,1765362653175,-450.0,0.00013972,2]
[398084825,1765362653185,-500.0,0.00013972,2]
[398084826,1765362653195,-534.37799139,0.00013972,2]
[398084827,1765362653205,-500.0,0.00013972,2]
[398084828,1765362653214,-500.0,0.00013972,2]
[398084829,1765362653224,-500.0,0.00013972,2]
[398084830,1765362653234,-500.0,0.00013972,2]
[398084831,1765362653243,-500.0,0.00013972,2]
[398084832,1765362653253,-500.0,0.00013972,2]
[398084833,1765362653263,-500.0,0.00013972,2]
[398084834,1765362653274,-500.0,0.00013972,2]
[398084835,1765362653284,-166.27650027,0.00013972,2]
[398084836,1765362653294,-500.0,0.00013972,2]
[398084837,1765362653304,-500.0,0.00013972,2]
[398084838,1765362653314,-500.0,0.00013972,2]
[398084839,1765362653325,-1083.26,0.00013972,2]
[398084840,1765362653335,-500.0,0.00013972,2]
[398084841,1765362653345,-500.0,0.00013972,2]
[398084842,1765362653356,-652.81,0.00013972,2]
[398084843,1765362653366,-500.0,0.00013972,2]
[398084844,1765362653375,-500.0,0.00013972,2]
[398084845,1765362653385,-500.0,0.00013972,2]
[398084846,1765362653394,-500.0,0.00013972,2]
[398084847,1765362653403,-673.07,0.00013972,2]
[398084848,1765362653414,-500.0,0.00013972,2]
[398084849,1765362653423,-614.53,0.00013972,2]
[398084850,1765362653433,-500.0,0.00013972,2]
[398084851,1765362653442,-500.0,0.00013972,2]
[398084852,1765362653451,-500.0,0.00013972,2]
[398084853,1765362653461,-1584.6,0.00013972,2]
[398084854,1765362653471,-500.0,0.00013972,2]
[398084855,1765362653480,-500.0,0.00013972,2]
[398084856,1765362653490,-500.0,0.00013972,2]
[398084857,1765362653501,-500.0,0.00013972,2]
[398084858,1765362653510,-500.0,0.00013972,2]
[398084859,1765362653520,-500.0,0.00013972,2]
[398084860,1765362653530,-570.71,0.00013972,2]
[398084861,1765362653539,-500.0,0.00013972,2]
[398084862,1765362653548,-500.0,0.00013972,2]
[398084863,1765362653558,-500.0,0.00013972,2]
[398084864,1765362653569,-529.17,0.00013972,2]
[398084865,1765362653582,-500.0,0.00013972,2]
[398084866,1765362653592,-650.77,0.00013972,2]
[398084867,1765362653602,-500.0,0.00013972,2]
[398084868,1765362653612,-500.0,0.00013972,2]
[398084869,1765362653623,-529.18,0.00013972,2]
[398084870,1765362653632,-702.83,0.00013972,2]
[398084871,1765362653643,-500.0,0.00013972,2]
[398084872,1765362653655,-500.0,0.00013972,2]
[398084873,1765362653665,-500.0,0.00013972,2]
[398084874,1765362653675,-500.0,0.00013972,2]
[398084875,1765362653685,-500.0,0.00013972,2]
[398084876,1765362653695,-500.0,0.00013972,2]
[398084877,1765362653704,-500.0,0.00013972,2]
[398084878,1765362653713,-500.0,0.00013972,2]
[398084879,1765362653723,-500.0,0.00013972,2]
[398084880,1765362653733,-500.0,0.00013972,2]
[398084881,1765362653742,-500.0,0.00013972,2]
[398084882,1765362653751,-500.0,0.00013972,2]
[398084883,1765362653761,-500.0,0.00013972,2]
[398084884,1765362653771,-500.0,0.00013972,2]
[398084885,1765362653781,-500.0,0.00013972,2]
[398084886,1765362653791,-500.0,0.00013972,2]
[398084887,1765362653800,-790.12,0.00013972,2]
[398084888,1765362653810,-500.0,0.00013972,2]
[398084889,1765362653820,-209.62246633,0.00013972,2]
[398084890,1765362653829,-500.0,0.00013972,2]
[398084891,1765362653839,-500.0,0.00013972,2]
[398084892,1765362653848,-500.0,0.00013972,2]
[398084893,1765362653858,-500.0,0.00013972,2]
[398084894,1765362653868,-500.0,0.00013972,2]
[398084895,1765362653878,-663.56,0.00013972,2]
[398084896,1765362653888,-719.48,0.00013972,2]
[398084897,1765362653897,-500.0,0.00013972,2]
[398084898,1765362653907,-670.86,0.00013972,2]
[398084899,1765362653918,-500.0,0.00013972,2]
[398084900,1765362653928,-500.0,0.00013972,2]
[398084901,1765362653939,-572.95,0.00013972,2]
[398084902,1765362653949,-500.0,0.00013972,2]
[398084903,1765362653959,-1085.24,0.00013972,2]
[398084904,1765362653969,-500.0,0.00013972,2]
[398084905,1765362653979,-500.0,0.00013972,2]
[398084906,1765362653989,-690.39,0.00013972,2]
[398084907,1765362653999,-629.26,0.00013972,2]
[398084908,1765362654008,-500.0,0.00013972,2]
[398084909,1765362654018,-500.0,0.00013972,2]
[398084910,1765362654028,-500.0,0.00013972,2]
[398084911,1765362654037,-500.0,0.00013972,2]
[398084912,1765362654047,-500.0,0.00013972,2]
[398084913,1765362654057,-500.0,0.00013972,2]
[398084914,1765362654066,-295.75536222,0.00013972,2]
[398084915,1765362654076,-761.37,0.00013972,2]
[398084916,1765362654087,-609.45,0.00013972,2]
[398084917,1765362654098,-500.0,0.00013972,2]
[398084918,1765362654107,-500.0,0.00013972,2]
[398084919,1765362654117,-500.0,0.00013972,2]
[398084920,1765362654127,-633.2283992,0.00013972,2]
[398084921,1765362654136,-500.0,0.00013972,2]
[398084922,1765362654147,-523.04,0.00013972,2]
[398084923,1765362654157,-500.0,0.00013972,2]
[398084924,1765362654167,-512.92,0.00013972,2]
[398084925,1765362654177,-500.0,0.00013972,2]
[398084926,1765362654187,-500.0,0.00013972,2]
[398084927,1765362654197,-500.0,0.00013972,2]
[398084928,1765362654207,-500.0,0.00013972,2]
[398084929,1765362654216,-500.0,0.00013972,2]
[398084930,1765362654225,-500.0,0.00013972,2]
[398084931,1765362654235,-500.0,0.00013972,2]
[398084932,1765362654244,-507.35764563,0.00013972,2]
[398084933,1765362654254,-500.0,0.00013972,2]
[398084934,1765362654263,-500.0,0.00013972,2]
[398084935,1765362654273,-500.0,0.00013972,2]
[398084936,1765362654282,-583.16,0.00013972,2]
[398084937,1765362654291,-500.0,0.00013972,2]
[398084938,1765362654301,-210.67713415,0.00013972,2]
[398084939,1765362654310,-500.0,0.00013972,2]
[398084940,1765362654319,-500.0,0.00013972,2]
[398084941,1765362654328,-500.0,0.00013972,2]
[398084942,1765362654337,-170.93660023,0.00013972,2]
[398084943,1765362654347,-500.0,0.00013972,2]
[398084944,1765362654357,-500.0,0.00013972,2]
[398084945,1765362654366,-500.0,0.00013972,2]
[398084946,1765362654376,-500.0,0.00013972,2]
[398084947,1765362654385,-500.0,0.00013972,2]
[398084948,1765362654395,-506.58295384,0.00013972,2]
[398084949,1765362654405,-500.0,0.00013972,2]
[398084950,1765362654416,-500.0,0.00013972,2]
[398084951,1765362654425,-363.44914534,0.00013972,2]
[398084952,1765362654435,-571.76923841,0.00013972,2]
[398084953,1765362654445,-1129.19,0.00013972,2]
[398084954,1765362654454,-627.47,0.00013972,2]
[398084955,1765362654463,-500.0,0.00013972,2]
[398084956,1765362654473,-500.0,0.00013972,2]
[398084957,1765362654483,-483.93219829,0.00013972,2]
[398084958,1765362654492,-500.0,0.00013972,2]
[398084959,1765362654502,-500.0,0.00013972,2]
[398084960,1765362654511,-500.0,0.00013972,2]
[398084961,1765362654521,-523.71,0.00013972,2]
[398084962,1765362654531,-500.0,0.00013972,2]
[398084963,1765362654540,-500.0,0.00013972,2]
[398084964,1765362654550,-500.0,0.00013972,2]
[398084965,1765362654561,-898.21,0.00013972,2]
[398084966,1765362654571,-500.0,0.00013972,2]
[398084967,1765362654585,-589.48,0.00013972,2]
[398084968,1765362654594,-500.0,0.00013972,2]
[398084969,1765362654604,-500.0,0.00013972,2]
[398084970,1765362654615,-500.0,0.00013972,2]
[398084971,1765362654624,-500.0,0.00013972,2]
[398084972,1765362654634,-500.0,0.00013972,2]
[398084973,1765362654644,-500.0,0.00013972,2]
[398084974,1765362654655,-500.0,0.00013972,2]
[398084975,1765362654666,-500.0,0.00013972,2]
[398084976,1765362654676,-500.0,0.00013972,2]
[398084977,1765362654685,-574.64,0.00013972,2]
[398084978,1765362654695,-500.0,0.00013972,2]
[398084979,1765362654705,-500.0,0.00013972,2]
[398084980,1765362654715,-1098.72,0.00013972,2]
[398084981,1765362654725,-500.0,0.00013972,2]
[398084982,1765362654735,-500.0,0.00013972,2]
[398084983,1765362654744,-548.27,0.00013972,2]
[398084984,1765362654753,-500.0,0.00013972,2]
[398084985,1765362654763,-500.0,0.00013972,2]
[398084986,1765362654772,-500.0,0.00013972,2]
[398084987,1765362654781,-500.0,0.00013972,2]
[398084988,1765362654791,-500.0,0.00013972,2]
[398084989,1765362654800,-300.22159769,0.00013972,2]
[398084990,1765362654809,-500.0,0.00013972,2]
[398084991,1765362654819,-716.9,0.00013972,2]
[398084992,1765362654828,-500.0,0.00013972,2]
[398084993,1765362654837,-500.0,0.00013972,2]
[398084994,1765362654846,-500.0,0.00013972,2]
[398084995,1765362654855,-888.25,0.00013972,2]
[398084996,1765362654864,-1070.93,0.00013972,2]
[398084997,1765362654873,-500.0,0.00013972,2]
[398084998,1765362654882,-500.0,0.00013972,2]
[398084999,1765362654891,-500.0,0.00013972,2]
[398085000,1765362654900,-556.12,0.00013972,2]
[398085001,1765362654909,-500.0,0.00013972,2]
[398085002,1765362654918,-521.45,0.00013972,2]
[398085003,1765362654927,-500.0,0.00013972,2]
[398085004,1765362654936,-500.0,0.00013972,2]
[398085005,1765362654945,-500.0,0.00013972,2]
[398085006,1765362654954,-1028.07,0.00013972,2]
[398085007,1765362654964,-544.81,0.00013972,2]
[398085008,1765362654973,-500.0,0.00013972,2]
[398085009,1765362654982,-500.0,0.00013972,2]
[398085010,1765362654992,-500.0,0.00013972,2]
[398085011,1765362655001,-500.0,0.00013972,2]
[398085012,1765362655011,-500.0,0.00013972,2]
[398085013,1765362655020,-706.17,0.00013972,2]
[398085014,1765362655029,-500.0,0.00013972,2]
[398085015,1765362655038,-500.0,0.00013972,2]
[398085016,1765362655047,-500.0,0.00013972,2]
[398085017,1765362655056,-500.0,0.00013972,2]
[398085018,1765362655065,-500.0,0.00013972,2]
[398085019,1765362655074,-500.0,0.00013972,2]
[398085020,1765362655083,-500.0,0.00013972,2]
[398085021,1765362655092,-500.0,0.00013972,2]
[398085022,1765362655102,-500.0,0.00013972,2]
[398085023,1765362655111,-666.68,0.00013972,2]
[398085024,1765362655121,-500.0,0.00013972,2]
[398085025,1765362655131,-500.0,0.00013972,2]
[398085026,1765362655140,-500.0,0.00013972,2]
[398085027,1765362655151,-500.0,0.00013972,2]
[398085028,1765362655161,-500.0,0.00013972,2]
[398085029,1765362655171,-668.57,0.00013972,2]
[398085030,1765362655181,-500.0,0.00013972,2]
[398085031,1765362655190,-500.0,0.00013972,2]
[398085032,1765362655200,-558.51,0.00013972,2]
[398085033,1765362655210,-664.84,0.00013972,2]
[398085034,1765362655219,-500.0,0.00013972,2]
[398085035,1765362655228,-725.47,0.00013972,2]
[398085036,1765362655237,-500.0,0.00013972,2]
[398085037,1765362655246,-500.0,0.00013972,2]
[398085038,1765362655255,-616.24,0.00013972,2]
[398085039,1765362655265,-500.0,0.00013972,2]
[398085040,1765362655275,-500.0,0.00013972,2]
[398085041,1765362655285,-500.0,0.00013972,2]
[398085042,1765362655294,-500.0,0.00013972,2]
[398085043,1765362655304,-500.0,0.00013972,2]
[398085044,1765362655314,-500.0,0.00013972,2]
[398085045,1765362655323,-500.0,0.00013972,2]
[398085046,1765362655333,-500.0,0.00013972,2]
[398085047,1765362655343,-518.13,0.00013972,2]
[398085048,1765362655352,-500.0,0.00013972,2]
[398085049,1765362655362,-500.0,0.00013972,2]
[398085050,1765362655371,-500.0,0.00013972,2]
[398085051,1765362655380,-500.0,0.00013972,2]
[398085052,1765362655390,-500.0,0.00013972,2]
[398085053,1765362655399,-500.0,0.00013972,2]
[398085054,1765362655410,-500.0,0.00013972,2]
[398085055,1765362655420,-500.0,0.00013972,2]
[398085056,1765362655429,-500.0,0.00013972,2]
[398085057,1765362655438,-500.0,0.00013972,2]
[398085058,1765362655449,-500.0,0.00013972,2]
[398085059,1765362655459,-254.40292377,0.00013972,2]
[398085060,1765362655468,-2822.19,0.00013972,2]
[398085061,1765362655478,-500.0,0.00013972,2]
[398085062,1765362655487,-500.0,0.00013972,2]
[398085063,1765362655497,-891.67,0.00013972,2]
[398085064,1765362655506,-647.78,0.00013972,2]
[398085065,1765362655515,-500.0,0.00013972,2]
[398085066,1765362655524,-500.0,0.00013972,2]
[398085067,1765362655534,-927.31,0.00013972,2]
[398085068,1765362655544,-500.0,0.00013972,2]
[398085069,1765362655731,-500.0,0.00013972,2]
[398085070,1765362655740,-500.0,0.00013972,2]
[398085071,1765362655750,-500.0,0.00013972,2]
[398085072,1765362655759,-645.97,0.00013972,2]
[398085073,1765362655767,-500.0,0.00013972,2]
[398085074,1765362655777,-500.59,0.00013972,2]
[398085075,1765362655786,-681.49,0.00013972,2]
[398085076,1765362655795,-541.17,0.00013972,2]
[398085077,1765362655804,-500.0,0.00013972,2]
[398085078,1765362655813,-507.49,0.00013972,2]
[398085079,1765362655822,-500.0,0.00013972,2]
[398085080,1765362655832,-500.0,0.00013972,2]
[398085081,1765362655841,-500.0,0.00013972,2]
[398085082,1765362655850,-500.0,0.00013972,2]
[398085083,1765362655859,-500.0,0.00013972,2]
[398085084,1765362655867,-1468.25,0.00013972,2]
[398085085,1765362655876,-500.0,0.00013972,2]
[398085086,1765362655885,-500.0,0.00013972,2]
[398085087,1765362655894,-500.0,0.00013972,2]
[398085088,1765362655903,-500.0,0.00013972,2]
[398085089,1765362655912,-572.8,0.00013972,2]
[398085090,1765362655921,-534.13,0.00013972,2]
[398085091,1765362655930,-500.0,0.00013972,2]
[398085092,1765362655939,-500.0,0.00013972,2]
[398085093,1765362655948,-500.0,0.00013972,2]
[398085094,1765362655958,-1360.91,0.00013972,2]
[398085095,1765362655967,-500.0,0.00013972,2]
[398085096,1765362655976,-500.0,0.00013972,2]
[398085097,1765362655985,-500.0,0.00013972,2]
[398085098,1765362655994,-500.0,0.00013972,2]
[398085099,1765362656003,-500.0,0.00013972,2]
[398085100,1765362656012,-500.0,0.00013972,2]
[398085101,1765362656021,-515.36,0.00013972,2]
[398085102,1765362656030,-1316.9,0.00013972,2]
[398085103,1765362656040,-151.0,0.00013972,2]
[398085104,1765362656051,-151.0,0.00013972,2]
[398085105,1765362656060,-500.0,0.00013972,2]
[398085106,1765362656069,-500.0,0.00013972,2]
[398085107,1765362656079,-500.0,0.00013972,2]
[398085108,1765362656090,-551.47,0.00013972,2]
[398085109,1765362656102,-500.0,0.00013972,2]
[398085110,1765362656113,-500.0,0.00013972,2]
[398085111,1765362656123,-500.0,0.00013972,2]
[398085112,1765362656134,-500.0,0.00013972,2]
[398085113,1765362656145,-500.0,0.00013972,2]
[398085114,1765362656158,-600.8,0.00013972,2]
[398085115,1765362656167,-500.0,0.00013972,2]
[398085116,1765362656178,-500.0,0.00013972,2]
[398085117,1765362656189,-500.0,0.00013972,2]
[398085118,1765362656200,-500.0,0.00013972,2]
[398085119,1765362656213,-500.0,0.00013972,2]
[398085120,1765362656224,-500.0,0.00013972,2]
[398085121,1765362656233,-500.0,0.00013972,2]
[398085122,1765362656244,-500.0,0.00013972,2]
[398085123,1765362656254,-500.0,0.00013972,2]
[398085124,1765362656264,-500.0,0.00013972,2]
[398085125,1765362656275,-500.0,0.00013972,2]
[398085126,1765362656286,-500.0,0.00013972,2]
[398085127,1765362656297,-504.81,0.00013972,2]
[398085128,1765362656306,-500.0,0.00013972,2]
[398085129,1765362656318,-3119.14,0.00013972,2]
[398085130,1765362656327,-500.0,0.00013972,2]
[398085131,1765362656337,-516.03,0.00013972,2]
[398085132,1765362656346,-500.0,0.00013972,2]
[398085133,1765362656355,-500.0,0.00013972,2]
[398085134,1765362656365,-500.0,0.00013972,2]
[398085135,1765362656374,-599.50596341,0.00013972,2]
[398085136,1765362656383,-500.0,0.00013972,2]
[398085137,1765362656392,-500.0,0.00013972,2]
[398085138,1765362656402,-500.0,0.00013972,2]
[398085139,1765362656413,-511.2,0.00013972,2]
[398085140,1765362656422,-600.22,0.00013972,2]
[398085141,1765362656431,-1067.97,0.00013972,2]
[398085142,1765362656440,-486.04398236,0.00013972,2]
[398085143,1765362656450,-500.0,0.00013972,2]
[398085144,1765362656459,-523.76,0.00013972,2]
[398085145,1765362656468,-544.44,0.00013972,2]
[398085146,1765362656477,-500.0,0.00013972,2]
[398085147,1765362656486,-500.84852463,0.00013972,2]
[398085148,1765362656495,-500.0,0.00013972,2]
[398085149,1765362656504,-500.0,0.00013972,2]
[398085150,1765362656514,-506.87,0.00013972,2]
[398085151,1765362656523,-687.19,0.00013972,2]
[398085152,1765362656531,-500.0,0.00013972,2]
[398085153,1765362656540,-581.83,0.00013972,2]
[398085154,1765362656549,-579.61,0.00013972,2]
[398085155,1765362656559,-500.0,0.00013972,2]
[398085156,1765362656568,-2994.34,0.00013972,2]
[398085157,1765362656581,-574.44,0.00013972,2]
[398085158,1765362656590,-1012.98,0.00013972,2]
[398085159,1765362656600,-500.0,0.00013972,2]
[398085160,1765362656609,-761.6,0.00013972,2]
[398085161,1765362656619,-992.77,0.00013972,2]
[398085162,1765362656628,-612.01,0.00013972,2]
[398085163,1765362656638,-692.08,0.00013972,2]
[398085164,1765362656647,-500.0,0.00013972,2]
[398085165,1765362656659,-500.0,0.00013972,2]
[398085166,1765362656669,-868.19,0.00013972,2]
[398085167,1765362656678,-500.0,0.00013972,2]
[398085168,1765362656687,-151.0,0.00013972,2]
[398085169,1765362656696,-500.0,0.00013972,2]
[398085170,1765362656704,-151.0,0.00013972,2]
[398085171,1765362656714,-662.82,0.00013972,2]
[398085172,1765362656723,-151.0,0.00013972,2]
[398085173,1765362656732,-151.0,0.00013972,2]
[398085174,1765362656741,-725.28,0.00013972,2]
[398085175,1765362656750,-500.0,0.00013972,2]
[398085176,1765362656758,-151.0,0.00013972,2]
[398085177,1765362656768,-151.0,0.00013972,2]
[398085178,1765362656777,-505.17,0.00013972,2]
[398085179,1765362656786,-500.0,0.00013972,2]
[398085180,1765362656795,-151.0,0.00013972,2]
[398085181,1765362656804,-254.228448,0.00013972,2]
[398085182,1765362656813,-517.56,0.00013972,2]
[398085183,1765362656822,-500.0,0.00013972,2]
[398085184,1765362656831,-500.0,0.00013972,2]
[398085185,1765362656841,-796.04,0.00013972,2]
[398085186,1765362656851,-500.0,0.00013972,2]
[398085187,1765362656860,-500.0,0.00013972,2]
[398085188,1765362656870,-543.58,0.00013972,2]
[398085189,1765362656879,-500.0,0.00013972,2]
[398085190,1765362656888,-580.01,0.00013972,2]
[398085191,1765362656899,-537.51,0.00013972,2]
[398085192,1765362656910,-500.0,0.00013972,2]
[398085193,1765362656919,-500.0,0.00013972,2]
[398085194,1765362656928,-500.0,0.00013972,2]
[398085195,1765362656940,-500.0,0.00013972,2]
[398085196,1765362656950,-516.62,0.00013972,2]
[398085197,1765362656960,-500.0,0.00013972,2]
[398085198,1765362656971,-500.0,0.00013972,2]
[398085199,1765362656981,-500.0,0.00013972,2]
[398085200,1765362656991,-563.73,0.00013972,2]
[398085201,1765362657000,-500.0,0.00013972,2]
[398085202,1765362657011,-500.0,0.00013972,2]
[398085203,1765362657020,-2231.69,0.00013972,2]
[398085204,1765362657030,-500.0,0.00013972,2]
[398085205,1765362657038,-500.0,0.00013972,2]
[398085206,1765362657047,-500.0,0.00013972,2]
[398085207,1765362657056,-500.0,0.00013972,2]
[398085208,1765362657067,-1424.11,0.00013972,2]
[398085209,1765362657078,-500.0,0.00013972,2]
[398085210,1765362657088,-500.0,0.00013972,2]
[398085211,1765362657097,-500.0,0.00013972,2]
[398085212,1765362657108,-500.0,0.00013972,2]
[398085213,1765362657117,-397.53985836,0.00013972,2]
[398085214,1765362657127,-500.0,0.00013972,2]
[398085215,1765362657137,-500.0,0.00013972,2]
[398085216,1765362657146,-500.0,0.00013972,2]
[398085217,1765362657155,-500.0,0.00013972,2]
[398085218,1765362657165,-562.63,0.00013972,2]
[398085219,1765362657174,-500.0,0.00013972,2]
[398085220,1765362657183,-500.0,0.00013972,2]
[398085221,1765362657197,-500.0,0.00013972,2]
[398085222,1765362657214,-529.77,0.00013972,2]
[398085223,1765362657230,-500.0,0.00013972,2]
[398085224,1765362657247,-798.54,0.00013972,2]
[398085225,1765362657262,-500.0,0.00013972,2]
[398085226,1765362657276,-500.0,0.00013972,2]
[398085227,1765362657288,-500.0,0.00013972,2]
[398085228,1765362657301,-500.0,0.00013972,2]
[398085229,1765362657314,-500.0,0.00013972,2]
[398085230,1765362657330,-579.61,0.00013972,2]
[398085231,1765362657345,-543.28,0.00013972,2]
[398085232,1765362657360,-500.0,0.00013972,2]
[398085233,1765362657376,-814.86,0.00013972,2]
[398085234,1765362657390,-749.27,0.00013972,2]
[398085235,1765362657405,-539.06,0.00013972,2]
[398085236,1765362657420,-500.0,0.00013972,2]
[398085237,1765362657437,-537.23,0.00013972,2]
[398085238,1765362657450,-500.0,0.00013972,2]
[398085239,1765362657463,-500.0,0.00013972,2]
[398085240,1765362657475,-500.0,0.00013972,2]
[398085241,1765362657490,-525.65,0.00013972,2]
[398085242,1765362657503,-747.73,0.00013972,2]
[398085243,1765362657515,-643.37,0.00013972,2]
[398085244,1765362657528,-500.0,0.00013972,2]
[398085245,1765362657543,-500.0,0.00013972,2]
[398085246,1765362657555,-1114.4,0.00013972,2]
[398085247,1765362657567,-512.92,0.00013972,2]
[398085248,1765362657584,-500.0,0.00013972,2]
[398085249,1765362657597,-645.86,0.00013972,2]
[398085250,1765362657617,-500.0,0.00013972,2]
[398085251,1765362657630,-2706.93,0.00013972,2]
[398085252,1765362657642,-669.43,0.00013972,2]
[398085253,1765362657657,-199.26834621,0.00013972,2]
[398085254,1765362657670,-500.0,0.00013972,2]
[398085255,1765362657682,-500.0,0.00013972,2]
[398085256,1765362657694,-500.0,0.00013972,2]
[398085257,1765362657706,-527.09,0.00013972,2]
[398085258,1765362657719,-500.0,0.00013972,2]
[398085259,1765362657731,-500.0,0.00013972,2]
[398085260,1765362657743,-620.7,0.00013972,2]
[398085261,1765362657755,-500.0,0.00013972,2]
[398085262,1765362657767,-500.0,0.00013972,2]
[398085263,1765362657779,-1426.33,0.00013972,2]
[398085264,1765362657791,-500.0,0.00013972,2]
[398085265,1765362657803,-1000.0,0.00013972,2]
[398085266,1765362657816,-596.93,0.00013972,2]
[398085267,1765362657827,-500.0,0.00013972,2]
[398085268,1765362657840,-500.0,0.00013972,2]